bitfinex/quotes_BTCUSD_20251124
["timestamp","ask_amount","ask_price","bid_price","bid_amount"]
[1764017619845,0.01,89219.0,89218.0,0.29423001]
[1764017620499,0.01,89219.0,89218.0,2.29423001]
[1764017620888,0.01,89219.0,89218.0,2.61723001]
[1764017621874,0.01,89219.0,89218.0,2.61623001]
[1764017622248,0.01,89219.0,89218.0,2.61111001]
[1764017622461,0.01,89219.0,89218.0,2.61823001]
[1764017623146,0.01,89219.0,89218.0,2.61111001]
[1764017623349,0.01,89219.0,89218.0,0.61823001]
[1764017624083,0.01,89219.0,89218.0,0.61923001]
[1764017627304,0.01,89219.0,89218.0,0.61211001]
[1764017627545,0.00986536,89219.0,89218.0,0.61923001]
[1764017629970,0.00986536,89219.0,89218.0,0.62923001]
[1764017630293,0.00024269,89224.0,89223.0,0.54715744]
[1764017630414,0.00024269,89224.0,89223.0,2.59995744]
[1764017630612,0.11261071,89269.0,89223.0,2.63772744]
[1764017630822,0.11261071,89269.0,89257.0,0.0112036]
[1764017630823,0.01120259,89265.0,89257.0,0.0112036]
[1764017631026,0.02103028,89264.0,89260.0,0.01120322]
[1764017631255,0.01120247,89266.0,89263.0,0.22405647]
[1764017631256,0.23525194,89266.0,89263.0,0.22405647]
[1764017631447,0.22404952,89266.0,89263.0,0.224057]
[1764017631646,0.00121288,89264.0,89260.0,0.01120322]
[1764017631848,0.22405467,89264.0,89260.0,0.01120322]
[1764017632052,0.23526043,89263.0,89259.0,0.23526803]
[1764017632276,0.01120272,89264.0,89259.0,0.01120335]
[1764017632480,0.23525961,89264.0,89260.0,0.22406204]
[1764017632675,0.22405704,89263.0,89260.0,0.22406204]
[1764017632881,0.23525989,89263.0,89260.0,0.22406204]
[1764017633485,0.02120272,89264.0,89260.0,0.01120322]
[1764017633691,0.02120272,89264.0,89261.0,0.22405953]
[1764017633910,0.24525788,89264.0,89261.0,0.224062]
[1764017634469,0.01,89264.0,89263.0,0.248427]
[1764017635446,0.01,89264.0,89263.0,0.286197]
[1764017637287,0.01,89264.0,89263.0,0.241277]
[1764017637661,0.01121288,89264.0,89263.0,0.203507]
[1764017637854,0.01121288,89264.0,89263.0,0.210627]
[1764017639003,0.01121288,89264.0,89263.0,0.248397]
[1764017640369,0.01121288,89264.0,89263.0,0.571397]
[1764017640572,0.01121288,89264.0,89263.0,2.571397]
[1764017640850,0.01121288,89264.0,89263.0,2.564277]
[1764017641003,0.01121288,89264.0,89263.0,2.571397]
[1764017641375,0.01121288,89264.0,89263.0,2.583397]
[1764017641602,0.01121288,89264.0,89263.0,2.573397]
[1764017643905,0.01121288,89264.0,89263.0,2.574397]
[1764017647108,0.01121288,89264.0,89263.0,2.584397]
[1764017647330,0.01121288,89264.0,89263.0,2.574397]
[1764017648132,0.01121288,89264.0,89263.0,2.584397]
[1764017648329,0.01121288,89264.0,89263.0,2.573397]
[1764017648681,0.01121288,89264.0,89263.0,2.581397]
[1764017648820,0.01121288,89264.0,89263.0,2.571397]
[1764017649037,0.01121288,89264.0,89263.0,2.581397]
[1764017649241,0.01121288,89264.0,89263.0,2.571397]
[1764017649840,0.01121288,89264.0,89263.0,2.572397]
[1764017650064,0.01121288,89264.0,89263.0,2.574397]
[1764017650225,0.01121288,89264.0,89263.0,2.567277]
[1764017650739,0.01121288,89264.0,89263.0,2.574397]
[1764017650924,0.01121288,89264.0,89263.0,2.567277]
[1764017651124,0.01121288,89264.0,89263.0,2.574397]
[1764017652543,0.01121288,89264.0,89263.0,2.567277]
[1764017652739,0.01121288,89264.0,89263.0,2.574397]
[1764017653612,4.386e-05,89290.0,89287.0,0.01119983]
[1764017653908,0.00016221,89290.0,89289.0,0.24633175]
[1764017654314,0.00016221,89290.0,89289.0,0.27973175]
[1764017654479,0.00016221,89290.0,89289.0,0.28685175]
[1764017656185,0.01016221,89290.0,89289.0,0.28885175]
[1764017656385,0.01016221,89290.0,89289.0,0.28985175]
[1764017657876,0.01016221,89290.0,89289.0,0.28273175]
[1764017658077,0.01016221,89290.0,89289.0,0.28985175]
[1764017658910,0.01016221,89290.0,89289.0,0.28885175]
[1764017659127,0.01016221,89290.0,89289.0,0.28685175]
[1764017659301,0.01016221,89290.0,89289.0,0.28785175]
[1764017659503,0.01095018,89290.0,89289.0,0.23211175]
[1764017659703,0.01095018,89290.0,89289.0,0.22499175]
[1764017659906,0.01095018,89290.0,89289.0,0.23211175]
[1764017660477,0.01191018,89290.0,89289.0,0.001]
[1764017660613,0.01191018,89290.0,89289.0,0.00812]
[1764017660797,0.01095018,89290.0,89289.0,0.23211175]
[1764017662011,0.01095018,89290.0,89289.0,0.23111175]
[1764017662508,0.01191018,89290.0,89287.0,0.22399677]
[1764017662707,0.12381029,89289.0,89284.0,0.00712]
[1764017663026,0.01119983,89287.0,89283.0,0.01832034]
[1764017663244,0.12381029,89289.0,89283.0,0.01832034]
[1764017663245,0.01016221,89290.0,89288.0,0.22399426]
[1764017663406,0.01016221,89290.0,89289.0,0.22399175]
[1764017664046,0.02136167,89290.0,89287.0,0.22399677]
[1764017664489,0.00072737,89288.0,89287.0,0.22399677]
[1764017665650,0.00072737,89288.0,89287.0,0.24633677]
[1764017666620,0.00072737,89288.0,89287.0,0.22399677]
[1764017668534,0.00072737,89288.0,89287.0,0.30213644]
[1764017668673,0.00072737,89288.0,89287.0,0.27973677]
[1764017670405,0.00127311,89299.0,89293.0,0.01119908]
[1764017670625,0.00136589,89299.0,89298.0,0.24630918]
[1764017670875,0.00136589,89299.0,89298.0,0.02234]
[1764017671080,0.00136589,89299.0,89298.0,0.23108918]
[1764017672141,0.00136589,89299.0,89298.0,0.23208918]
[1764017673892,0.00136589,89299.0,89298.0,0.28782918]
[1764017674517,0.01136589,89299.0,89298.0,0.28782918]
[1764017674937,0.01136589,89299.0,89298.0,0.28682918]
[1764017675152,0.01136589,89299.0,89298.0,0.28782918]
[1764017675390,0.01136589,89299.0,89298.0,0.28982918]
[1764017675589,0.01136589,89299.0,89298.0,2.61082918]
[1764017675816,0.01136589,89299.0,89298.0,2.60982918]
[1764017675972,0.01136589,89299.0,89298.0,2.61282918]
[1764017676153,0.01136589,89299.0,89298.0,2.62282918]
[1764017676350,0.01136589,89299.0,89298.0,2.61282918]
[1764017676573,0.01169918,89299.0,89298.0,2.61182918]
[1764017676748,0.01169918,89299.0,89298.0,2.61082918]
[1764017676949,0.01169918,89299.0,89298.0,2.61282918]
[1764017677378,0.01169918,89299.0,89298.0,2.62282918]
[1764017677586,0.01169918,89299.0,89298.0,2.61282918]
[1764017677744,0.01169918,89299.0,89298.0,2.62282918]
[1764017678634,0.01169918,89299.0,89298.0,2.69571606]
[1764017680384,0.00013,89318.0,89317.0,2.54692153]
[1764017680660,0.00302033,89333.0,89322.0,0.233909]
[1764017680813,0.00302033,89333.0,89322.0,2.264009]
[1764017681019,0.00302033,89333.0,89322.0,2.297409]
[1764017681417,0.00302033,89333.0,89322.0,2.304529]
[1764017681824,0.00302033,89333.0,89322.0,2.297409]
[1764017682000,0.00302033,89333.0,89322.0,0.297409]
[1764017682204,0.00302033,89333.0,89322.0,0.307529]
[1764017682425,0.00302033,89333.0,89322.0,0.308529]
[1764017682624,0.00302033,89333.0,89322.0,0.305529]
[1764017682911,0.00302033,89333.0,89322.0,0.307529]
[1764017683056,0.00302033,89333.0,89322.0,0.306529]
[1764017683255,0.00302033,89333.0,89322.0,0.304529]
[1764017684384,0.00302033,89333.0,89322.0,0.305529]
[1764017685855,0.00302033,89333.0,89322.0,0.283239]
[1764017686093,0.00302033,89333.0,89322.0,0.290359]
[1764017686294,0.00302033,89333.0,89322.0,0.289359]
[1764017686508,0.00093403,89323.0,89322.0,0.289359]
[1764017687290,0.00093403,89323.0,89322.0,0.231029]
[1764017687505,0.00093403,89323.0,89322.0,0.253009]
[1764017687705,0.00093403,89323.0,89322.0,0.288319]
[1764017688254,0.00093403,89323.0,89322.0,0.289319]
[1764017688641,0.00093403,89323.0,89322.0,0.256009]
[1764017689284,0.00093403,89323.0,89322.0,0.289319]
[1764017690448,0.00093403,89323.0,89322.0,0.296319]
[1764017690782,0.00093403,89323.0,89322.0,0.288319]
[1764017691402,0.00302033,89333.0,89326.0,0.22389897]
[1764017691736,0.00011835,89327.0,89326.0,0.27826886]
[1764017691944,0.00011835,89327.0,89326.0,0.28918897]
[1764017692146,0.00302033,89333.0,89326.0,0.28918897]
[1764017692147,1e-08,89333.0,89332.0,0.22388393]
[1764017692353,1e-08,89333.0,89332.0,0.28537232]
[1764017692559,1e-08,89333.0,89332.0,0.29629393]
[1764017693134,1e-08,89333.0,89332.0,0.61929393]
[1764017694100,0.00127522,89364.0,89336.0,0.56885391]
[1764017694101,1e-08,89337.0,89336.0,0.56885391]
[1764017694335,1e-08,89337.0,89336.0,0.61216391]
[1764017694807,1e-08,89337.0,89336.0,2.61216391]
[1764017695221,1e-08,89337.0,89336.0,2.60316391]
[1764017695563,1e-08,89337.0,89336.0,2.61028391]
[1764017695918,1e-08,89337.0,89336.0,2.62028391]
[1764017696274,1e-08,89337.0,89336.0,2.61028391]
[1764017696590,1e-08,89337.0,89336.0,2.62028391]
[1764017696960,1e-08,89337.0,89336.0,2.61228391]
[1764017697277,1e-08,89337.0,89336.0,2.61516391]
[1764017697487,1e-08,89337.0,89336.0,2.61228391]
[1764017697843,1e-08,89337.0,89336.0,2.62228391]
[1764017698575,1e-08,89337.0,89336.0,2.61228391]
[1764017698986,1e-08,89337.0,89336.0,2.60516391]
[1764017699194,1e-08,89337.0,89336.0,2.62228391]
[1764017699745,1e-08,89337.0,89336.0,2.61228391]
[1764017700102,1e-08,89337.0,89336.0,2.62228391]
[1764017700322,1e-08,89337.0,89336.0,2.60516391]
[1764017700651,1e-08,89337.0,89336.0,0.24885391]
[1764017700874,1e-08,89337.0,89336.0,0.25597391]
[1764017701215,1e-08,89337.0,89336.0,0.28928391]
[1764017701414,1e-08,89337.0,89336.0,0.28828391]
[1764017701616,1e-08,89337.0,89336.0,0.25597391]
[1764017701838,1e-08,89337.0,89336.0,0.24685391]
[1764017702046,1e-08,89337.0,89336.0,0.25597391]
[1764017702246,1e-08,89337.0,89336.0,0.28928391]
[1764017702660,0.00042394,89337.0,89336.0,0.28928391]
[1764017703026,0.00042394,89337.0,89336.0,0.29928391]
[1764017703234,0.00042394,89337.0,89336.0,0.28928391]
[1764017703687,0.00042394,89337.0,89336.0,0.61228391]
[1764017703935,0.00042394,89337.0,89336.0,0.60516391]
[1764017704236,0.00042394,89337.0,89336.0,0.25597391]
[1764017704436,0.00042394,89337.0,89336.0,0.23399391]
[1764017704640,0.00042394,89337.0,89336.0,0.22687391]
[1764017704857,0.00042394,89337.0,89336.0,0.2563813]
[1764017705051,0.00042394,89337.0,89336.0,0.25597391]
[1764017705865,0.00042394,89337.0,89336.0,0.24885391]
[1764017706079,0.00042394,89337.0,89336.0,0.25597391]
[1764017706900,0.11265465,89349.0,89348.0,0.22364391]
[1764017707140,0.10403465,89349.0,89348.0,0.22364391]
[1764017707344,0.11265465,89349.0,89348.0,0.22364391]
[1764017707816,0.00036328,89349.0,89348.0,0.22364391]
[1764017708456,0.00898328,89349.0,89348.0,0.22464391]
[1764017708899,0.00036328,89349.0,89348.0,0.22464391]
[1764017709115,0.00898328,89349.0,89348.0,0.22464391]
[1764017709338,0.00898328,89349.0,89348.0,0.23176391]
[1764017709339,0.12159399,89349.0,89348.0,0.23176391]
[1764017709542,0.00898328,89349.0,89348.0,0.23176391]
[1764017709753,0.12159399,89349.0,89348.0,0.23176391]
[1764017710753,0.12858399,89349.0,89348.0,0.23176391]
[1764017711250,0.12159399,89349.0,89348.0,0.23176391]
[1764017711801,0.12858399,89349.0,89348.0,0.22464391]
[1764017712234,0.12858399,89349.0,89348.0,0.00812]
[1764017712847,0.12858399,89349.0,89348.0,0.22484384]
[1764017713051,0.12858399,89349.0,89348.0,0.23096384]
[1764017713293,0.12858399,89349.0,89348.0,0.25294384]
[1764017713294,0.00036328,89349.0,89348.0,0.25294384]
[1764017713511,0.00036328,89349.0,89348.0,0.28625384]
[1764017713942,0.00036328,89349.0,89348.0,0.25294384]
[1764017715028,0.00036328,89349.0,89348.0,0.28451384]
[1764017715893,0.00036328,89349.0,89348.0,0.23196384]
[1764017716111,0.00036328,89349.0,89348.0,0.25297384]
[1764017716337,0.00036328,89349.0,89348.0,0.25197384]
[1764017716569,0.00036328,89349.0,89348.0,0.22484384]
[1764017716802,0.01434328,89349.0,89348.0,0.22484384]
[1764017717048,0.01434328,89349.0,89348.0,0.001]
[1764017717479,0.07686627,89349.0,89348.0,0.001]
[1764017718513,0.01119331,89339.0,89333.0,0.22388101]
[1764017718653,0.01119294,89342.0,89333.0,0.22388101]
[1764017718654,0.11960071,89334.0,89333.0,0.01119407]
[1764017718864,0.11960071,89334.0,89333.0,0.2350755]
[1764017719067,0.12659071,89334.0,89333.0,0.2350755]
[1764017719476,0.11960071,89334.0,89333.0,0.2350755]
[1764017720078,0.11960071,89334.0,89333.0,0.2360755]
[1764017720283,0.11960071,89334.0,89333.0,0.001]
[1764017720538,0.54827967,89334.0,89333.0,0.001]
[1764017720706,0.06252299,89328.0,89318.0,0.01119595]
[1764017720884,0.12659071,89319.0,89318.0,0.00011834]
[1764017721084,0.12659071,89319.0,89318.0,0.22403737]
[1764017721301,0.12659071,89319.0,89318.0,0.00011834]
[1764017721302,0.13358071,89319.0,89318.0,0.00011834]
[1764017722730,0.00699,89319.0,89318.0,0.00011834]
[1764017722928,0.00699,89324.0,89323.0,0.23510098]
[1764017723163,0.00699,89324.0,89321.0,0.22390985]
[1764017723368,0.00699,89324.0,89322.0,0.223909]
[1764017723695,0.00699,89324.0,89323.0,0.22390649]
[1764017724369,0.01398,89324.0,89323.0,0.22390649]
[1764017724799,0.02097,89324.0,89323.0,0.22390649]
[1764017725195,0.03216519,89324.0,89321.0,0.22390985]
[1764017725405,0.00699,89322.0,89321.0,0.22390985]
[1764017725816,0.02517545,89322.0,89318.0,0.00011834]
[1764017726021,0.11960071,89319.0,89318.0,0.22403645]
[1764017726469,0.11960071,89319.0,89318.0,0.23115645]
[1764017726578,0.12659071,89319.0,89318.0,0.23115645]
[1764017726858,0.00699,89324.0,89318.0,0.23115645]
[1764017726859,0.00699,89324.0,89323.0,0.22390649]
[1764017727076,0.00699,89324.0,89318.0,0.2423524]
[1764017727077,0.00699,89319.0,89318.0,0.01843429]
[1764017727284,0.00699,89319.0,89318.0,0.23115737]
[1764017727491,0.00699,89319.0,89318.0,0.00011834]
[1764017727492,0.01398,89319.0,89318.0,0.00011834]
[1764017728125,0.00699,89319.0,89318.0,0.00011834]
[1764017728371,0.01398,89319.0,89318.0,0.00011834]
[1764017729049,0.07650299,89319.0,89318.0,0.00011834]
[1764017729849,0.07650299,89319.0,89318.0,0.22403737]
[1764017730053,0.07650299,89319.0,89318.0,0.00011834]
[1764017731034,0.07650299,89319.0,89268.0,0.01653]
[1764017731035,0.07650299,89319.0,89287.0,0.01119983]
[1764017731036,0.60947712,89304.0,89287.0,0.01119983]
[1764017731242,0.5051237,89304.0,89288.0,0.2239935]
[1764017731450,0.5121137,89304.0,89293.0,0.22398077]
[1764017731659,0.5121137,89304.0,89291.0,0.22398632]
[1764017731863,0.5121137,89304.0,89300.0,0.22396238]
[1764017732088,0.5121137,89304.0,89298.0,0.22561968]
[1764017732289,0.5121137,89304.0,89300.0,0.22396213]
[1764017732488,0.5121137,89304.0,89298.0,0.00165243]
[1764017732489,0.5121137,89304.0,89298.0,0.22562156]
[1764017732686,0.5121137,89304.0,89299.0,0.2239646]
[1764017732914,0.73706783,89304.0,89298.0,0.00165243]
[1764017733137,0.73706783,89304.0,89298.0,0.22561954]
[1764017733526,0.5131137,89304.0,89298.0,0.22561954]
[1764017733725,0.5131137,89304.0,89302.0,0.22395882]
[1764017733965,0.5131137,89304.0,89301.0,0.22395979]
[1764017734099,0.5131137,89304.0,89302.0,0.22395671]
[1764017734484,0.5131137,89304.0,89298.0,0.22561954]
[1764017734485,0.5131137,89304.0,89298.0,0.00165243]
[1764017734689,0.06252299,89300.0,89298.0,0.00165243]
[1764017734894,0.39950299,89299.0,89298.0,0.00165243]
[1764017735089,0.62346966,89299.0,89298.0,0.00165243]
[1764017735547,0.0737227,89288.0,89273.0,0.01120159]
[1764017735774,0.06252299,89286.0,89284.0,0.22400316]
[1764017735927,0.00699,89285.0,89284.0,0.22400316]
[1764017736494,0.01398,89285.0,89284.0,0.22400316]
[1764017736899,0.00699,89285.0,89284.0,0.22400316]
[1764017738116,0.5051237,89304.0,89303.0,0.22395664]
[1764017738318,0.11261071,89304.0,89303.0,0.22395664]
[1764017738519,0.11960071,89304.0,89303.0,0.22395664]
[1764017739527,0.11960071,89304.0,89298.0,0.01119845]
[1764017739528,0.14106848,89304.0,89296.0,0.22397376]
[1764017739730,0.01818783,89303.0,89295.0,0.01119883]
[1764017739928,0.01119808,89301.0,89294.0,0.23109909]
[1764017740130,0.22395972,89302.0,89294.0,0.23109909]
[1764017740131,0.00699,89295.0,89294.0,0.23109909]
[1764017740376,0.00699,89295.0,89289.0,0.01119958]
[1764017740377,0.00699,89295.0,89286.0,0.01119996]
[1764017740578,0.0111987,89296.0,89293.0,0.22398168]
[1764017740714,0.00504,89294.0,89289.0,0.22399113]
[1764017740915,0.11261071,89290.0,89289.0,0.22399113]
[1764017741215,0.11765071,89290.0,89289.0,0.23111113]
[1764017741634,0.11765071,89290.0,89289.0,0.22111113]
[1764017742053,0.11765071,89290.0,89289.0,0.22211113]
[1764017742266,0.11765071,89290.0,89289.0,0.22111113]
[1764017743075,0.11261071,89304.0,89303.0,0.22395664]
[1764017743076,0.1801737,89304.0,89303.0,0.22395664]
[1764017743479,0.1852137,89304.0,89303.0,0.22395664]
[1764017744583,0.1801737,89304.0,89303.0,0.22395664]
[1764017745014,0.11765071,89304.0,89303.0,0.22395664]
[1764017746047,0.00699,89305.0,89303.0,0.22395664]
[1764017746249,0.11261071,89304.0,89303.0,0.22395664]
[1764017747867,0.00699,89305.0,89304.0,0.22395413]
[1764017749281,0.0046,89320.0,89319.0,0.22391652]
[1764017749691,0.0092,89320.0,89314.0,0.22392905]
[1764017749895,0.0092,89320.0,89313.0,0.23512562]
[1764017749896,0.0046,89319.0,89317.0,0.00712]
[1764017750104,0.06712299,89319.0,89318.0,0.22391903]
[1764017750698,0.07172299,89319.0,89318.0,0.22391903]
[1764017752642,0.07172299,89319.0,89316.0,0.22392387]
[1764017752856,0.11721071,89317.0,89316.0,0.2239224]
[1764017753283,0.12181071,89317.0,89316.0,0.2239224]
[1764017754336,0.11721071,89317.0,89316.0,0.2239224]
[1764017754542,0.0046,89320.0,89319.0,0.22391652]
[1764017754751,0.0092,89320.0,89319.0,0.22391652]
[1764017754964,0.0138,89320.0,89319.0,0.22391652]
[1764017755377,0.0092,89320.0,89319.0,0.22391652]
[1764017755583,0.0138,89320.0,89319.0,0.22391652]
[1764017755790,0.0092,89320.0,89319.0,0.22391652]
[1764017756212,0.0046,89320.0,89319.0,0.22391652]
[1764017756858,0.0092,89320.0,89319.0,0.22391652]
[1764017757258,0.02644107,89320.0,89319.0,0.22391652]
[1764017757461,0.0092,89320.0,89319.0,0.22391652]
[1764017758863,0.0138,89320.0,89319.0,0.22391652]
[1764017759091,0.0092,89320.0,89319.0,0.22391652]
[1764017759448,0.0138,89320.0,89319.0,0.22391652]
[1764017759584,0.0092,89320.0,89319.0,0.22391652]
[1764017760614,0.0046,89320.0,89319.0,0.22391652]
[1764017760840,0.0138,89320.0,89319.0,0.22391652]
[1764017760984,0.07632299,89320.0,89308.0,0.0111972]
[1764017761188,0.06252299,89313.0,89308.0,0.0111972]
[1764017761406,0.06252299,89313.0,89312.0,0.22393407]
[1764017761829,0.07172299,89313.0,89312.0,0.22393407]
[1764017762543,0.07172299,89313.0,89310.0,0.22393838]
[1764017762750,0.0046,89311.0,89308.0,0.2239441]
[1764017762954,0.06252299,89313.0,89308.0,0.2239441]
[1764017762955,0.0046,89309.0,89308.0,0.2351413]
[1764017763383,0.0092,89309.0,89302.0,0.22395844]
[1764017763583,0.06712299,89308.0,89302.0,0.01129073]
[1764017763785,0.0046,89303.0,89302.0,0.22405131]
[1764017764691,0.323,89313.0,89310.0,0.01119695]
[1764017764692,0.06252299,89312.0,89310.0,0.01119695]
[1764017764827,0.06252299,89312.0,89307.0,0.01119733]
[1764017764828,0.06252299,89312.0,89311.0,0.22393602]
[1764017765032,0.06712299,89312.0,89311.0,0.22393602]
[1764017765234,0.07172299,89312.0,89311.0,0.22393602]
[1764017765637,0.0046,89312.0,89311.0,0.22393602]
[1764017765851,0.0092,89312.0,89311.0,0.22393602]
[1764017766441,0.0046,89312.0,89311.0,0.22393602]
[1764017766646,0.11261071,89314.0,89313.0,0.22393156]
[1764017767195,0.11721071,89314.0,89313.0,0.22393156]
[1764017767546,0.11721071,89314.0,89303.0,0.01119783]
[1764017767547,0.23512844,89313.0,89303.0,0.01119783]
[1764017767747,0.0046,89312.0,89311.0,0.22393634]
[1764017767916,0.11721071,89314.0,89311.0,0.23513316]
[1764017768118,0.0046,89312.0,89311.0,0.22393634]
[1764017770142,0.0046,89312.0,89305.0,0.23514902]
[1764017770343,0.0046,89303.0,89302.0,0.23116942]
[1764017770766,0.00753,89303.0,89302.0,9.278e-05]
[1764017770978,0.07005299,89303.0,89302.0,9.278e-05]
[1764017771181,0.29400963,89303.0,89302.0,9.278e-05]
[1764017771385,0.07005299,89303.0,89302.0,0.22405192]
[1764017772196,0.06712299,89303.0,89302.0,0.22405192]
[1764017772401,0.07005299,89303.0,89302.0,0.00109278]
[1764017772572,0.06812299,89303.0,89302.0,0.22405192]
[1764017772784,0.07105299,89303.0,89302.0,9.278e-05]
[1764017773213,0.29500963,89303.0,89302.0,9.278e-05]
[1764017773398,0.00853,89303.0,89302.0,0.22405192]
[1764017773565,0.0056,89303.0,89302.0,0.22405192]
[1764017774413,0.06252299,89309.0,89307.0,0.01119733]
[1764017774630,0.06252299,89309.0,89308.0,0.22394356]
[1764017774850,0.07371969,89312.0,89309.0,0.22393931]
[1764017775052,0.06252299,89312.0,89307.0,0.01119733]
[1764017775246,0.06252299,89312.0,89308.0,0.0111972]
[1764017775466,0.06252299,89310.0,89302.0,9.278e-05]
[1764017775602,0.001,89309.0,89306.0,0.01119745]
[1764017775818,0.002,89309.0,89306.0,0.23514656]
[1764017776018,0.001,89309.0,89308.0,0.2239441]
[1764017776219,0.01119707,89309.0,89305.0,0.22395162]
[1764017776417,0.06252299,89307.0,89304.0,0.22395393]
[1764017776619,0.01119745,89306.0,89302.0,9.278e-05]
[1764017776822,0.28647963,89303.0,89302.0,9.278e-05]
[1764017777256,0.65027876,89303.0,89302.0,9.278e-05]
[1764017777460,0.60947963,89303.0,89302.0,9.278e-05]
[1764017777876,0.28650972,89291.0,89290.0,0.00024242]
[1764017778079,0.39912043,89291.0,89290.0,0.00024242]
[1764017779318,0.1751337,89291.0,89290.0,0.00024242]
[1764017779528,0.39912043,89291.0,89290.0,0.00024242]
[1764017780226,0.40012043,89291.0,89290.0,0.00024242]
[1764017781250,0.40112043,89291.0,89290.0,0.00024242]
[1764017781444,0.48816834,89291.0,89290.0,0.00024242]
[1764017781644,0.40112043,89291.0,89290.0,0.00024242]
[1764017781862,0.40824043,89291.0,89290.0,0.00024242]
[1764017782049,0.73124043,89291.0,89290.0,0.00024242]
[1764017782269,0.73124043,89291.0,89290.0,2.42e-06]
[1764017786002,0.73124043,89291.0,89290.0,0.22399166]
[1764017786003,0.5072537,89291.0,89290.0,0.22399166]
[1764017786206,0.11461071,89291.0,89290.0,0.22399166]
[1764017787027,0.11461071,89291.0,89290.0,0.23111166]
[1764017787234,0.001,89291.0,89290.0,0.25113166]
[1764017787454,0.12380716,89314.0,89309.0,0.01119707]
[1764017787671,0.2351328,89312.0,89307.0,0.01119733]
[1764017787874,0.01119695,89310.0,89307.0,0.01119733]
[1764017787998,0.22394943,89306.0,89301.0,0.01119808]
[1764017788194,0.0111972,89308.0,89303.0,0.01119783]
[1764017788400,0.01119745,89306.0,89302.0,0.01119795]
[1764017788610,0.23515218,89304.0,89297.0,0.01119858]
[1764017788816,0.11261071,89299.0,89298.0,0.23516707]
[1764017789021,0.12380904,89299.0,89294.0,0.22397804]
[1764017789221,0.11261071,89299.0,89295.0,0.00712]
[1764017789588,0.22397183,89297.0,89295.0,0.00712]
[1764017790160,0.22397183,89297.0,89290.0,2.42e-06]
[1764017790161,0.22398673,89291.0,89290.0,2.42e-06]
[1764017790792,0.28650972,89291.0,89290.0,2.42e-06]
[1764017791003,0.60950972,89291.0,89290.0,2.42e-06]
[1764017791207,0.64316996,89291.0,89290.0,2.42e-06]
[1764017791540,0.75839127,89291.0,89290.0,2.42e-06]
[1764017791948,2.64316996,89291.0,89290.0,2.42e-06]
[1764017792155,2.6692997,89291.0,89290.0,2.42e-06]
[1764017792321,2.6712997,89291.0,89290.0,2.42e-06]
[1764017792738,2.61150972,89291.0,89290.0,2.42e-06]
[1764017793538,2.61050972,89291.0,89290.0,2.42e-06]
[1764017793773,2.61250972,89291.0,89290.0,2.42e-06]
[1764017793951,2.61962972,89291.0,89290.0,2.42e-06]
[1764017794750,2.39464299,89291.0,89290.0,2.42e-06]
[1764017794973,0.39264299,89291.0,89290.0,2.42e-06]
[1764017795173,0.39364299,89291.0,89290.0,2.42e-06]
[1764017795394,0.39564299,89291.0,89290.0,2.42e-06]
[1764017795769,0.39464299,89291.0,89290.0,2.42e-06]
[1764017796194,0.325,89291.0,89290.0,2.42e-06]
[1764017796373,0.002,89291.0,89290.0,2.42e-06]
[1764017796575,0.06252299,89291.0,89290.0,2.42e-06]
[1764017796918,0.223985,89292.0,89290.0,2.42e-06]
[1764017797117,0.06552299,89291.0,89290.0,2.42e-06]
[1764017797316,0.38652299,89291.0,89290.0,2.42e-06]
[1764017799467,0.41218956,89291.0,89290.0,2.42e-06]
[1764017799673,0.38652299,89291.0,89290.0,2.42e-06]
[1764017799880,0.38752299,89291.0,89290.0,2.42e-06]
[1764017801785,0.61150972,89291.0,89290.0,2.42e-06]
[1764017805300,0.06452299,89291.0,89290.0,2.42e-06]
[1764017805730,0.06452299,89291.0,89290.0,0.22399166]
[1764017805940,0.002,89291.0,89290.0,0.22399166]
[1764017806154,0.002,89291.0,89290.0,2.42e-06]
[1764017806567,0.002,89291.0,89290.0,0.22399166]
[1764017806986,0.33419896,89294.0,89290.0,0.22399166]
[1764017807193,0.38552299,89294.0,89293.0,0.22398172]
[1764017807829,0.06252299,89294.0,89293.0,0.22398172]
[1764017808032,0.323,89298.0,89295.0,0.2239747]
[1764017808245,0.323,89298.0,89295.0,0.23517353]
[1764017808462,0.323,89298.0,89296.0,0.22397419]
[1764017808679,0.11261071,89299.0,89298.0,0.22396918]
[1764017809104,0.22394282,89309.0,89297.0,0.22396946]
[1764017809105,0.23513989,89309.0,89305.0,0.01119758]
[1764017809305,0.23513577,89311.0,89305.0,0.01119758]
[1764017809306,0.01119682,89311.0,89307.0,0.23514394]
[1764017809550,0.01119682,89311.0,89305.0,0.01119758]
[1764017809551,0.01119707,89309.0,89305.0,0.2351469]
[1764017809764,0.01119707,89309.0,89306.0,0.22394687]
[1764017809976,0.01119707,89309.0,89306.0,0.22394822]
[1764017810190,0.23514424,89307.0,89299.0,0.01119833]
[1764017810408,0.2351452,89307.0,89300.0,0.0111982]
[1764017810622,0.23514658,89306.0,89301.0,0.22396165]
[1764017810854,0.01119795,89302.0,89292.0,0.22398255]
[1764017811071,0.01119733,89307.0,89300.0,0.0111982]
[1764017811284,0.23515037,89305.0,89302.0,0.22395912]
[1764017811703,0.01119745,89306.0,89302.0,0.22395912]
[1764017811920,0.22393931,89310.0,89301.0,0.01831808]
[1764017811921,0.22393666,89311.0,89303.0,0.01119783]
[1764017812136,0.01119682,89311.0,89308.0,0.22394198]
[1764017812352,0.06252299,89313.0,89308.0,0.0111972]
[1764017812580,0.01119682,89311.0,89306.0,0.22394674]
[1764017812791,0.01119758,89305.0,89302.0,0.22395712]
[1764017813001,0.22394931,89306.0,89302.0,0.22395684]
[1764017813212,0.22394931,89306.0,89301.0,0.00712]
[1764017813213,0.23515305,89304.0,89301.0,0.00712]
[1764017813657,0.22395914,89302.0,89301.0,0.00712]
[1764017814080,0.23516464,89301.0,89296.0,0.22397385]
[1764017814297,0.11261071,89300.0,89297.0,0.23109151]
[1764017814499,0.11261071,89300.0,89299.0,0.22396667]
[1764017814705,0.11261071,89300.0,89298.0,0.22396803]
[1764017815189,0.01119845,89298.0,89295.0,0.22397456]
[1764017815423,0.23516897,89298.0,89296.0,0.00712]
[1764017815854,0.22397168,89297.0,89296.0,0.00712]
[1764017816257,0.22397729,89295.0,89290.0,2.42e-06]
[1764017816513,0.0111987,89296.0,89291.0,0.00712]
[1764017816858,0.01119896,89294.0,89291.0,0.23110566]
[1764017817241,0.01119883,89295.0,89291.0,0.23110566]
[1764017817242,0.23516709,89299.0,89296.0,0.22397366]
[1764017817456,0.0111977,89304.0,89295.0,0.01119883]
[1764017817663,0.01119695,89310.0,89299.0,0.22396667]
[1764017817871,0.01119682,89311.0,89306.0,0.01119745]
[1764017818087,0.07371956,89313.0,89308.0,0.0111972]
[1764017818290,0.11261071,89314.0,89312.0,0.22393407]
[1764017818464,0.11261071,89314.0,89313.0,0.22393156]
[1764017819574,0.11261071,89314.0,89311.0,0.22393494]
[1764017819788,0.11261071,89314.0,89313.0,0.22393156]